[Event "Titled Tuesday Blitz November 30 2021"]
[White "Iljiushenok, Ilia"]
[Black "Weetik, Vjacheslav"]
[WhiteFideId "24105074"]
[BlackFideId "4153472"]
[WhiteElo "2578"]
[BlackElo "2469"]
[Result "1-0"]
[Round "10"]
[TimeControl "180+1"]
[Date "2021.11.30"]
[WhiteClock "0:01:21"]
[BlackClock "0:00:01"]

1. e4 {[%clk 0:02:59]}  c6 {[%clk 0:03:00]} 2. Nf3 {[%clk 0:02:58]}  d5 {[%clk 0:03:00]} 3. d3 {[%clk 0:02:58]}  Bg4 {[%clk 0:03:00]} 4. Be2 {[%clk 0:02:57]}  e6 {[%clk 0:03:00]} 5. Ne5 {[%clk 0:02:54]}  Bxe2 {[%clk 0:02:58]} 6. Qxe2 {[%clk 0:02:55]}  dxe4 {[%clk 0:02:58]} 7. Qxe4 {[%clk 0:02:50]}  Nf6 {[%clk 0:02:58]} 8. Qe2 {[%clk 0:02:50]}  Nbd7 {[%clk 0:02:48]} 9. f4 {[%clk 0:02:48]}  Bc5 {[%clk 0:02:42]} 10. Nd2 {[%clk 0:02:47]}  O-O {[%clk 0:02:41]} 11. Ndf3 {[%clk 0:02:44]}  Nd5 {[%clk 0:02:31]} 12. Bd2 {[%clk 0:02:43]}  Nxe5 {[%clk 0:02:25]} 13. fxe5 {[%clk 0:02:42]}  Qb6 {[%clk 0:02:23]} 14. O-O-O {[%clk 0:02:42]}  a5 {[%clk 0:02:17]} 15. a3 {[%clk 0:02:40]}  Be7 {[%clk 0:00:58]} 16. Qe4 {[%clk 0:02:33]}  h6 {[%clk 0:00:22]} 17. h4 {[%clk 0:02:31]}  Bb4 {[%clk 0:00:20]} 18. c3 {[%clk 0:01:44]}  Bxa3 {[%clk 0:00:20]} 19. bxa3 {[%clk 0:01:43]}  Qb3 {[%clk 0:00:20]} 20. Qc4 {[%clk 0:01:43]}  Qxa3+ {[%clk 0:00:21]} 21. Kc2 {[%clk 0:01:42]}  b5 {[%clk 0:00:15]} 22. Qb3 {[%clk 0:01:41]}  Qxb3+ {[%clk 0:00:12]} 23. Kxb3 {[%clk 0:01:40]}  c5 {[%clk 0:00:13]} 24. c4 {[%clk 0:01:37]}  a4+ {[%clk 0:00:13]} 25. Ka2 {[%clk 0:01:36]}  bxc4 {[%clk 0:00:07]} 26. dxc4 {[%clk 0:01:36]}  Nb6 {[%clk 0:00:07]} 27. Rc1 {[%clk 0:01:34]}  a3 {[%clk 0:00:07]} 28. Rc2 {[%clk 0:01:33]}  Ra4 {[%clk 0:00:07]} 29. Rhc1 {[%clk 0:01:32]}  Rb8 {[%clk 0:00:08]} 30. Be3 {[%clk 0:01:32]}  Nd7 {[%clk 0:00:06]} 31. Ne1 {[%clk 0:01:27]}  Rab4 {[%clk 0:00:04]} 32. Nd3 {[%clk 0:01:26]}  Rb3 {[%clk 0:00:05]} 33. Rc3 {[%clk 0:01:26]}  Rxc3 {[%clk 0:00:02]} 34. Rxc3 {[%clk 0:01:25]}  Rc8 {[%clk 0:00:02]} 35. Rxa3 {[%clk 0:01:25]}  f6 {[%clk 0:00:03]} 36. Ra7 {[%clk 0:01:23]}  Nb6 {[%clk 0:00:02]} 37. exf6 {[%clk 0:01:23]}  gxf6 {[%clk 0:00:01]} 38. Bxh6 {[%clk 0:01:22]}  Nxc4 {[%clk 0:00:02]} 39. Bg7 {[%clk 0:01:22]}  Kh7 {[%clk 0:00:01]} 40. h5 {[%clk 0:01:21]} 1-0


[Site "https://www.chess.com"]

[Event "Titled Tuesday Blitz November 30 2021"]
[White "Ivanisevic, Ivan"]
[Black "Pranav, V"]
[WhiteFideId "912417"]
[BlackFideId "25060783"]
[WhiteElo "2499"]
[BlackElo "2351"]
[Result "1-0"]
[Round "10"]
[TimeControl "180+1"]
[Date "2021.11.30"]
[WhiteClock "0:00:09"]
[BlackClock "0:00:07"]

1. d4 {[%clk 0:03:00]}  Nf6 {[%clk 0:03:00]} 2. c4 {[%clk 0:03:01]}  e6 {[%clk 0:02:59]} 3. Nc3 {[%clk 0:03:02]}  Bb4 {[%clk 0:02:59]} 4. e3 {[%clk 0:03:02]}  O-O {[%clk 0:02:58]} 5. Bd3 {[%clk 0:03:02]}  d5 {[%clk 0:02:59]} 6. a3 {[%clk 0:03:03]}  Bxc3+ {[%clk 0:02:58]} 7. bxc3 {[%clk 0:03:04]}  b6 {[%clk 0:02:59]} 8. cxd5 {[%clk 0:03:03]}  exd5 {[%clk 0:03:00]} 9. Ne2 {[%clk 0:03:03]}  c5 {[%clk 0:03:00]} 10. O-O {[%clk 0:03:03]}  Ba6 {[%clk 0:03:00]} 11. f3 {[%clk 0:03:03]}  Qc8 {[%clk 0:02:59]} 12. e4 {[%clk 0:02:54]}  Nc6 {[%clk 0:02:53]} 13. e5 {[%clk 0:02:53]}  Ne8 {[%clk 0:02:52]} 14. Ng3 {[%clk 0:02:50]}  f5 {[%clk 0:02:48]} 15. exf6 {[%clk 0:02:24]}  Nxf6 {[%clk 0:02:47]} 16. Bg5 {[%clk 0:02:25]}  cxd4 {[%clk 0:02:20]} 17. cxd4 {[%clk 0:02:24]}  Bc4 {[%clk 0:02:21]} 18. Bf5 {[%clk 0:02:16]}  Qd8 {[%clk 0:02:15]} 19. Re1 {[%clk 0:02:15]}  h6 {[%clk 0:02:11]} 20. Bf4 {[%clk 0:01:56]}  Kh8 {[%clk 0:02:08]} 21. Qd2 {[%clk 0:01:55]}  Nh5 {[%clk 0:02:00]} 22. Nxh5 {[%clk 0:01:28]}  Rxf5 {[%clk 0:01:59]} 23. Ng3 {[%clk 0:01:28]}  Rf6 {[%clk 0:01:51]} 24. Be5 {[%clk 0:01:27]}  Rg6 {[%clk 0:01:51]} 25. Nh5 {[%clk 0:01:22]}  Qh4 {[%clk 0:01:42]} 26. Nf4 {[%clk 0:01:21]}  Rg5 {[%clk 0:01:33]} 27. g3 {[%clk 0:01:11]}  Ne7 {[%clk 0:01:11]} 28. Qg2 {[%clk 0:00:47]}  Nf5 {[%clk 0:00:58]} 29. gxh4 {[%clk 0:00:47]}  Rxg2+ {[%clk 0:00:58]} 30. Kxg2 {[%clk 0:00:46]}  Nxh4+ {[%clk 0:00:58]} 31. Kf2 {[%clk 0:00:46]}  Kh7 {[%clk 0:00:57]} 32. Ng2 {[%clk 0:00:39]}  Ng6 {[%clk 0:00:55]} 33. Ne3 {[%clk 0:00:39]}  Rf8 {[%clk 0:00:49]} 34. Nxc4 {[%clk 0:00:38]}  dxc4 {[%clk 0:00:50]} 35. Rac1 {[%clk 0:00:39]}  Nh4 {[%clk 0:00:49]} 36. Re3 {[%clk 0:00:37]}  b5 {[%clk 0:00:49]} 37. a4 {[%clk 0:00:37]}  a6 {[%clk 0:00:49]} 38. axb5 {[%clk 0:00:37]}  axb5 {[%clk 0:00:50]} 39. Rb1 {[%clk 0:00:36]}  Nf5 {[%clk 0:00:42]} 40. Ra3 {[%clk 0:00:35]}  c3 {[%clk 0:00:29]} 41. Rxc3 {[%clk 0:00:35]}  Ra8 {[%clk 0:00:28]} 42. Rcb3 {[%clk 0:00:31]}  Ra2+ {[%clk 0:00:26]} 43. R1b2 {[%clk 0:00:31]}  Ra1 {[%clk 0:00:26]} 44. Rxb5 {[%clk 0:00:30]}  Rh1 {[%clk 0:00:27]} 45. Rb7 {[%clk 0:00:25]}  Kg6 {[%clk 0:00:27]} 46. R2b6+ {[%clk 0:00:23]}  Kh5 {[%clk 0:00:27]} 47. Rf7 {[%clk 0:00:23]}  g6 {[%clk 0:00:26]} 48. Rxf5+ {[%clk 0:00:22]}  gxf5 {[%clk 0:00:27]} 49. Rf6 {[%clk 0:00:21]}  Kg5 {[%clk 0:00:26]} 50. Kg2 {[%clk 0:00:21]}  Re1 {[%clk 0:00:24]} 51. f4+ {[%clk 0:00:21]}  Kg4 {[%clk 0:00:24]} 52. Rg6+ {[%clk 0:00:20]}  Kh5 {[%clk 0:00:25]} 53. Rg7 {[%clk 0:00:19]}  Re2+ {[%clk 0:00:24]} 54. Kf3 {[%clk 0:00:19]}  Rxh2 {[%clk 0:00:20]} 55. d5 {[%clk 0:00:19]}  Rd2 {[%clk 0:00:20]} 56. d6 {[%clk 0:00:19]}  Rd3+ {[%clk 0:00:18]} 57. Ke2 {[%clk 0:00:19]}  Rd5 {[%clk 0:00:19]} 58. d7 {[%clk 0:00:19]}  Kh4 {[%clk 0:00:16]} 59. Bf6+ {[%clk 0:00:18]}  Kh5 {[%clk 0:00:16]} 60. Be5 {[%clk 0:00:15]}  Kh4 {[%clk 0:00:15]} 61. Bc7 {[%clk 0:00:15]}  Kh5 {[%clk 0:00:15]} 62. Ke3 {[%clk 0:00:15]}  Rd1 {[%clk 0:00:14]} 63. Be5 {[%clk 0:00:14]}  Rd5 {[%clk 0:00:12]} 64. Re7 {[%clk 0:00:14]}  Kg6 {[%clk 0:00:11]} 65. Bc7 {[%clk 0:00:13]}  Kh5 {[%clk 0:00:10]} 66. d8=Q {[%clk 0:00:13]}  Rc5 {[%clk 0:00:10]} 67. Qe8+ {[%clk 0:00:12]}  Kh4 {[%clk 0:00:11]} 68. Rg7 {[%clk 0:00:11]}  Rc3+ {[%clk 0:00:09]} 69. Kd4 {[%clk 0:00:11]}  Rxc7 {[%clk 0:00:07]} 70. Rxc7 {[%clk 0:00:09]} 1-0


[Site "https://www.chess.com"]

[Event "Titled Tuesday Blitz November 30 2021"]
[White "Jobava, Baadur"]
[Black "Kollars, Dmitrij"]
[WhiteFideId "13601520"]
[BlackFideId "12909572"]
[WhiteElo "2731"]
[BlackElo "2584"]
[Result "1-0"]
[Round "10"]
[TimeControl "180+1"]
[Date "2021.11.30"]
[WhiteClock "0:02:34"]
[BlackClock "0:00:19"]

1. e4 {[%clk 0:03:00]}  c6 {[%clk 0:02:56]} 2. c4 {[%clk 0:03:00]}  d5 {[%clk 0:02:53]} 3. cxd5 {[%clk 0:03:01]}  cxd5 {[%clk 0:02:54]} 4. exd5 {[%clk 0:03:02]}  Nf6 {[%clk 0:02:55]} 5. Qa4+ {[%clk 0:03:03]}  Nbd7 {[%clk 0:02:52]} 6. Nc3 {[%clk 0:03:03]}  g6 {[%clk 0:02:41]} 7. Nf3 {[%clk 0:03:03]}  Bg7 {[%clk 0:02:41]} 8. Bc4 {[%clk 0:03:03]}  O-O {[%clk 0:02:41]} 9. d3 {[%clk 0:03:04]}  a6 {[%clk 0:02:40]} 10. Qa3 {[%clk 0:03:04]}  b6 {[%clk 0:02:35]} 11. O-O {[%clk 0:03:03]}  Bb7 {[%clk 0:02:35]} 12. Re1 {[%clk 0:03:04]}  b5 {[%clk 0:02:29]} 13. Bb3 {[%clk 0:03:04]}  Re8 {[%clk 0:02:24]} 14. Be3 {[%clk 0:03:04]}  Nb6 {[%clk 0:02:21]} 15. d6 {[%clk 0:03:04]}  exd6 {[%clk 0:02:17]} 16. Ng5 {[%clk 0:03:04]}  Nbd5 {[%clk 0:02:08]} 17. Nxf7 {[%clk 0:03:04]}  Kxf7 {[%clk 0:02:03]} 18. Bg5 {[%clk 0:03:04]}  Re5 {[%clk 0:01:33]} 19. Bxf6 {[%clk 0:03:04]}  Kxf6 {[%clk 0:00:57]} 20. Rxe5 {[%clk 0:02:50]}  dxe5 {[%clk 0:00:57]} 21. Ne4+ {[%clk 0:02:50]}  Kf7 {[%clk 0:00:27]} 22. Nd6+ {[%clk 0:02:50]}  Kg8 {[%clk 0:00:20]} 23. Nxb7 {[%clk 0:02:51]}  Qd7 {[%clk 0:00:19]} 24. Qc5 {[%clk 0:02:34]} 1-0


[Site "https://www.chess.com"]

[Event "Titled Tuesday Blitz November 30 2021"]
[White "Kobalia, Mikhail"]
[Black "Wagner, Dennis"]
[WhiteFideId "4119150"]
[BlackFideId "24650684"]
[WhiteElo "2543"]
[BlackElo "2355"]
[Result "1-0"]
[Round "10"]
[TimeControl "180+1"]
[Date "2021.11.30"]
[WhiteClock "0:01:34"]
[BlackClock "0:00:02"]

1. e4 {[%clk 0:02:27]}  c5 {[%clk 0:02:58]} 2. Nf3 {[%clk 0:02:26]}  d6 {[%clk 0:02:59]} 3. d4 {[%clk 0:02:25]}  cxd4 {[%clk 0:03:00]} 4. Nxd4 {[%clk 0:02:25]}  Nf6 {[%clk 0:03:00]} 5. Nc3 {[%clk 0:02:26]}  a6 {[%clk 0:03:01]} 6. Be3 {[%clk 0:02:26]}  e5 {[%clk 0:03:01]} 7. Nb3 {[%clk 0:02:26]}  Be7 {[%clk 0:03:02]} 8. Qd2 {[%clk 0:02:26]}  Be6 {[%clk 0:02:56]} 9. O-O-O {[%clk 0:02:26]}  Ng4 {[%clk 0:02:51]} 10. Kb1 {[%clk 0:02:25]}  Nxe3 {[%clk 0:02:45]} 11. Qxe3 {[%clk 0:02:25]}  Nd7 {[%clk 0:02:42]} 12. g3 {[%clk 0:02:25]}  O-O {[%clk 0:02:26]} 13. f4 {[%clk 0:02:24]}  b5 {[%clk 0:02:11]} 14. f5 {[%clk 0:02:22]}  Bc4 {[%clk 0:02:03]} 15. Bxc4 {[%clk 0:02:22]}  bxc4 {[%clk 0:02:04]} 16. Nd2 {[%clk 0:02:22]}  Nb6 {[%clk 0:01:54]} 17. Qe2 {[%clk 0:02:12]}  Qc7 {[%clk 0:01:50]} 18. g4 {[%clk 0:02:08]}  Rab8 {[%clk 0:01:48]} 19. Ka1 {[%clk 0:02:06]}  Rb7 {[%clk 0:01:46]} 20. h4 {[%clk 0:02:05]}  Rfb8 {[%clk 0:01:46]} 21. g5 {[%clk 0:02:06]}  Qc5 {[%clk 0:01:41]} 22. f6 {[%clk 0:02:05]}  Bf8 {[%clk 0:01:33]} 23. Rhf1 {[%clk 0:02:00]}  d5 {[%clk 0:01:03]} 24. exd5 {[%clk 0:01:59]}  Nxd5 {[%clk 0:01:04]} 25. Nxd5 {[%clk 0:01:46]}  Rxb2 {[%clk 0:00:27]} 26. Nxc4 {[%clk 0:01:44]}  Qb5 {[%clk 0:00:09]} 27. Ne7+ {[%clk 0:01:38]}  Bxe7 {[%clk 0:00:09]} 28. fxe7 {[%clk 0:01:38]}  Rxa2+ {[%clk 0:00:09]} 29. Kxa2 {[%clk 0:01:38]}  Qa4+ {[%clk 0:00:02]} 30. Na3 {[%clk 0:01:36]}  Qb4 {[%clk 0:00:02]} 31. Rd8+ {[%clk 0:01:34]} 1-0


[Site "https://www.chess.com"]

[Event "Titled Tuesday Blitz November 30 2021"]
[White "Leiva, Gianmarco"]
[Black "Acor, Corey"]
[WhiteFideId "3804399"]
[BlackFideId "2024861"]
[WhiteElo "2318"]
[BlackElo "2300"]
[Result "1-0"]
[Round "10"]
[TimeControl "180+1"]
[Date "2021.11.30"]
[WhiteClock "0:00:11"]
[BlackClock "0:00:02"]

1. e4 {[%clk 0:02:53]}  e5 {[%clk 0:02:59]} 2. Nf3 {[%clk 0:02:53]}  Nc6 {[%clk 0:02:59]} 3. Bc4 {[%clk 0:02:53]}  Bc5 {[%clk 0:02:59]} 4. O-O {[%clk 0:02:53]}  Nf6 {[%clk 0:02:59]} 5. Re1 {[%clk 0:02:51]}  d6 {[%clk 0:02:58]} 6. c3 {[%clk 0:02:51]}  Bb6 {[%clk 0:02:58]} 7. d3 {[%clk 0:02:48]}  h6 {[%clk 0:02:54]} 8. Bb3 {[%clk 0:02:42]}  O-O {[%clk 0:02:53]} 9. h3 {[%clk 0:02:39]}  Re8 {[%clk 0:02:50]} 10. Nbd2 {[%clk 0:02:40]}  d5 {[%clk 0:02:49]} 11. exd5 {[%clk 0:02:35]}  Nxd5 {[%clk 0:02:50]} 12. Nc4 {[%clk 0:02:35]}  f6 {[%clk 0:02:23]} 13. d4 {[%clk 0:01:23]}  e4 {[%clk 0:02:04]} 14. Nfd2 {[%clk 0:01:22]}  f5 {[%clk 0:02:03]} 15. f3 {[%clk 0:01:16]}  Be6 {[%clk 0:01:36]} 16. fxe4 {[%clk 0:01:14]}  fxe4 {[%clk 0:01:36]} 17. Nxe4 {[%clk 0:01:14]}  Qh4 {[%clk 0:01:34]} 18. Nxb6 {[%clk 0:00:36]}  axb6 {[%clk 0:01:35]} 19. Bd2 {[%clk 0:00:28]}  Bf7 {[%clk 0:01:17]} 20. Qf3 {[%clk 0:00:26]}  Na5 {[%clk 0:01:14]} 21. Bxd5 {[%clk 0:00:12]}  Bxd5 {[%clk 0:01:12]} 22. Nf6+ {[%clk 0:00:12]}  Qxf6 {[%clk 0:01:12]} 23. Qxd5+ {[%clk 0:00:12]}  Kh7 {[%clk 0:01:07]} 24. Rf1 {[%clk 0:00:08]}  Qg6 {[%clk 0:01:06]} 25. Rf2 {[%clk 0:00:06]}  Red8 {[%clk 0:01:00]} 26. Qf7 {[%clk 0:00:06]}  Rf8 {[%clk 0:00:49]} 27. Qxg6+ {[%clk 0:00:05]}  Kxg6 {[%clk 0:00:50]} 28. Bf4 {[%clk 0:00:04]}  c6 {[%clk 0:00:41]} 29. b3 {[%clk 0:00:05]}  Nxb3 {[%clk 0:00:39]} 30. Re1 {[%clk 0:00:05]}  Na5 {[%clk 0:00:37]} 31. Re6+ {[%clk 0:00:05]}  Rf6 {[%clk 0:00:34]} 32. Re7 {[%clk 0:00:04]}  Raf8 {[%clk 0:00:29]} 33. Bg3 {[%clk 0:00:02]}  Rxf2 {[%clk 0:00:27]} 34. Bxf2 {[%clk 0:00:03]}  Rf7 {[%clk 0:00:27]} 35. Re6+ {[%clk 0:00:03]}  Rf6 {[%clk 0:00:24]} 36. Re7 {[%clk 0:00:04]}  Rf7 {[%clk 0:00:21]} 37. Re6+ {[%clk 0:00:03]}  Kh7 {[%clk 0:00:19]} 38. d5 {[%clk 0:00:03]}  cxd5 {[%clk 0:00:16]} 39. Bxb6 {[%clk 0:00:02]}  Nc4 {[%clk 0:00:16]} 40. Bd4 {[%clk 0:00:03]}  Rc7 {[%clk 0:00:14]} 41. Re8 {[%clk 0:00:02]}  Na3 {[%clk 0:00:11]} 42. Rd8 {[%clk 0:00:02]}  Nb5 {[%clk 0:00:11]} 43. Rxd5 {[%clk 0:00:02]}  Nxc3 {[%clk 0:00:12]} 44. Bxc3 {[%clk 0:00:02]}  Rxc3 {[%clk 0:00:13]} 45. Rd7 {[%clk 0:00:02]}  Rc1+ {[%clk 0:00:11]} 46. Kh2 {[%clk 0:00:02]}  Rb1 {[%clk 0:00:12]} 47. a4 {[%clk 0:00:01]}  Kg6 {[%clk 0:00:12]} 48. a5 {[%clk 0:00:02]}  Rb3 {[%clk 0:00:12]} 49. Rd6+ {[%clk 0:00:02]}  Kf5 {[%clk 0:00:12]} 50. Rd7 {[%clk 0:00:03]}  g6 {[%clk 0:00:11]} 51. Rh7 {[%clk 0:00:02]}  Rb5 {[%clk 0:00:07]} 52. Rc7 {[%clk 0:00:02]}  h5 {[%clk 0:00:05]} 53. Kg3 {[%clk 0:00:02]}  Rb2 {[%clk 0:00:04]} 54. Kf3 {[%clk 0:00:03]}  Rb3+ {[%clk 0:00:04]} 55. Kf2 {[%clk 0:00:03]}  Rb5 {[%clk 0:00:05]} 56. Rf7+ {[%clk 0:00:02]}  Ke6 {[%clk 0:00:05]} 57. Rc7 {[%clk 0:00:03]}  Kf6 {[%clk 0:00:06]} 58. Rd7 {[%clk 0:00:03]}  Rb3 {[%clk 0:00:06]} 59. Rc7 {[%clk 0:00:03]}  Kf5 {[%clk 0:00:06]} 60. Rf7+ {[%clk 0:00:03]}  Ke6 {[%clk 0:00:06]} 61. Rg7 {[%clk 0:00:04]}  Kf6 {[%clk 0:00:05]} 62. Rc7 {[%clk 0:00:04]}  h4 {[%clk 0:00:06]} 63. Ke2 {[%clk 0:00:04]}  Kf5 {[%clk 0:00:05]} 64. Rc5+ {[%clk 0:00:04]}  Kf4 {[%clk 0:00:05]} 65. Rc4+ {[%clk 0:00:05]}  Kf5 {[%clk 0:00:05]} 66. Rxh4 {[%clk 0:00:05]}  Rb2+ {[%clk 0:00:04]} 67. Kf1 {[%clk 0:00:04]}  Rb1+ {[%clk 0:00:04]} 68. Kf2 {[%clk 0:00:04]}  Ra1 {[%clk 0:00:05]} 69. Rb4 {[%clk 0:00:03]}  Ra2+ {[%clk 0:00:04]} 70. Kg1 {[%clk 0:00:03]}  Ra1+ {[%clk 0:00:04]} 71. Kh2 {[%clk 0:00:02]}  Rxa5 {[%clk 0:00:05]} 72. Rxb7 {[%clk 0:00:03]}  Ra3 {[%clk 0:00:06]} 73. Rb2 {[%clk 0:00:03]}  Kf6 {[%clk 0:00:06]} 74. Rf2+ {[%clk 0:00:04]}  Kg7 {[%clk 0:00:06]} 75. Rb2 {[%clk 0:00:05]}  Ra4 {[%clk 0:00:07]} 76. Rb7+ {[%clk 0:00:05]}  Kf6 {[%clk 0:00:07]} 77. Rb3 {[%clk 0:00:06]}  Kg7 {[%clk 0:00:08]} 78. Rf3 {[%clk 0:00:07]}  Kh6 {[%clk 0:00:08]} 79. Kg3 {[%clk 0:00:08]}  Rb4 {[%clk 0:00:08]} 80. Rf4 {[%clk 0:00:09]}  Rb3+ {[%clk 0:00:09]} 81. Rf3 {[%clk 0:00:09]}  Rb2 {[%clk 0:00:10]} 82. Ra3 {[%clk 0:00:10]}  Rc2 {[%clk 0:00:10]} 83. Ra8 {[%clk 0:00:10]}  Kg5 {[%clk 0:00:10]} 84. Ra5+ {[%clk 0:00:11]}  Kh6 {[%clk 0:00:10]} 85. Re5 {[%clk 0:00:11]}  Rc3+ {[%clk 0:00:10]} 86. Kf2 {[%clk 0:00:11]}  Rc4 {[%clk 0:00:11]} 87. Re3 {[%clk 0:00:12]}  Rc2+ {[%clk 0:00:11]} 88. Kf3 {[%clk 0:00:12]}  Rc4 {[%clk 0:00:12]} 89. g3 {[%clk 0:00:13]}  Kg7 {[%clk 0:00:11]} 90. Re4 {[%clk 0:00:13]}  Rc3+ {[%clk 0:00:11]} 91. Kf4 {[%clk 0:00:14]}  Rc1 {[%clk 0:00:12]} 92. Re7+ {[%clk 0:00:14]}  Kf6 {[%clk 0:00:12]} 93. Re4 {[%clk 0:00:14]}  Rf1+ {[%clk 0:00:12]} 94. Kg4 {[%clk 0:00:14]}  Rb1 {[%clk 0:00:13]} 95. h4 {[%clk 0:00:15]}  Rb3 {[%clk 0:00:12]} 96. Rf4+ {[%clk 0:00:15]}  Kg7 {[%clk 0:00:12]} 97. Ra4 {[%clk 0:00:16]}  Rb6 {[%clk 0:00:11]} 98. Kg5 {[%clk 0:00:15]}  Rb5+ {[%clk 0:00:11]} 99. Kg4 {[%clk 0:00:16]}  Kh6 {[%clk 0:00:10]} 100. Rc4 {[%clk 0:00:15]}  Rd5 {[%clk 0:00:10]} 101. Kh3 {[%clk 0:00:16]}  Kg7 {[%clk 0:00:10]} 102. Kg2 {[%clk 0:00:15]}  Rd2+ {[%clk 0:00:09]} 103. Kf3 {[%clk 0:00:16]}  Rd3+ {[%clk 0:00:10]} 104. Kf4 {[%clk 0:00:16]}  Rd6 {[%clk 0:00:09]} 105. Rc5 {[%clk 0:00:16]}  Kf6 {[%clk 0:00:09]} 106. Rc4 {[%clk 0:00:15]}  Ra6 {[%clk 0:00:08]} 107. g4 {[%clk 0:00:15]}  Rb6 {[%clk 0:00:08]} 108. Ra4 {[%clk 0:00:15]}  Rc6 {[%clk 0:00:07]} 109. Rb4 {[%clk 0:00:15]}  Ra6 {[%clk 0:00:07]} 110. g5+ {[%clk 0:00:15]}  Ke6 {[%clk 0:00:05]} 111. Re4+ {[%clk 0:00:14]}  Kf7 {[%clk 0:00:06]} 112. Rb4 {[%clk 0:00:15]}  Ke6 {[%clk 0:00:06]} 113. Kg4 {[%clk 0:00:14]}  Rd6 {[%clk 0:00:06]} 114. Rf4 {[%clk 0:00:14]}  Ke7 {[%clk 0:00:05]} 115. h5 {[%clk 0:00:13]}  gxh5+ {[%clk 0:00:04]} 116. Kxh5 {[%clk 0:00:14]}  Rd1 {[%clk 0:00:05]} 117. Kg6 {[%clk 0:00:14]}  Rh1 {[%clk 0:00:04]} 118. Kg7 {[%clk 0:00:14]}  Rh2 {[%clk 0:00:04]} 119. Re4+ {[%clk 0:00:15]}  Kd6 {[%clk 0:00:03]} 120. Re1 {[%clk 0:00:15]}  Rg2 {[%clk 0:00:03]} 121. g6 {[%clk 0:00:15]}  Kd7 {[%clk 0:00:02]} 122. Kf7 {[%clk 0:00:15]}  Rf2+ {[%clk 0:00:03]} 123. Kg8 {[%clk 0:00:15]}  Rg2 {[%clk 0:00:04]} 124. g7 {[%clk 0:00:15]}  Rg3 {[%clk 0:00:04]} 125. Re4 {[%clk 0:00:11]}  Rg2 {[%clk 0:00:03]} 126. Kf7 {[%clk 0:00:12]}  Rf2+ {[%clk 0:00:03]} 127. Kg6 {[%clk 0:00:12]}  Rg2+ {[%clk 0:00:03]} 128. Kf6 {[%clk 0:00:12]}  Rf2+ {[%clk 0:00:01]} 129. Kg5 {[%clk 0:00:11]}  Ra2 {[%clk 0:00:02]} 130. g8=Q {[%clk 0:00:11]} 1-0


[Site "https://www.chess.com"]

[Event "Titled Tuesday Blitz November 30 2021"]
[White "Lysyj, Igor"]
[Black "Leitao, Rafael"]
[WhiteFideId "4150120"]
[BlackFideId "2101246"]
[WhiteElo "2611"]
[BlackElo "2609"]
[Result "1-0"]
[Round "10"]
[TimeControl "180+1"]
[Date "2021.11.30"]
[WhiteClock "0:01:35"]
[BlackClock "0:00:33"]

1. d4 {[%clk 0:03:00]}  Nf6 {[%clk 0:02:58]} 2. Nf3 {[%clk 0:02:59]}  e6 {[%clk 0:02:57]} 3. c4 {[%clk 0:02:58]}  Bb4+ {[%clk 0:02:56]} 4. Bd2 {[%clk 0:02:58]}  c5 {[%clk 0:02:48]} 5. Bxb4 {[%clk 0:02:56]}  cxb4 {[%clk 0:02:48]} 6. g3 {[%clk 0:02:56]}  b6 {[%clk 0:02:47]} 7. Bg2 {[%clk 0:02:56]}  Bb7 {[%clk 0:02:47]} 8. O-O {[%clk 0:02:56]}  O-O {[%clk 0:02:47]} 9. Qd3 {[%clk 0:02:55]}  a5 {[%clk 0:02:44]} 10. Rd1 {[%clk 0:02:49]}  d6 {[%clk 0:02:43]} 11. a3 {[%clk 0:02:46]}  Na6 {[%clk 0:02:43]} 12. Nbd2 {[%clk 0:02:46]}  Qc7 {[%clk 0:02:38]} 13. Ne1 {[%clk 0:02:42]}  e5 {[%clk 0:02:31]} 14. Nc2 {[%clk 0:02:33]}  Bxg2 {[%clk 0:02:24]} 15. Kxg2 {[%clk 0:02:32]}  Qb7+ {[%clk 0:01:45]} 16. e4 {[%clk 0:02:28]}  exd4 {[%clk 0:01:42]} 17. axb4 {[%clk 0:02:24]}  axb4 {[%clk 0:01:42]} 18. f3 {[%clk 0:02:14]}  Rfc8 {[%clk 0:01:33]} 19. Nxd4 {[%clk 0:02:12]}  Nc5 {[%clk 0:01:33]} 20. Qe3 {[%clk 0:02:08]}  Re8 {[%clk 0:01:16]} 21. Nb5 {[%clk 0:02:04]}  Qc6 {[%clk 0:01:14]} 22. Qd4 {[%clk 0:02:00]}  Rxa1 {[%clk 0:01:08]} 23. Rxa1 {[%clk 0:01:59]}  d5 {[%clk 0:01:09]} 24. exd5 {[%clk 0:01:42]}  Re2+ {[%clk 0:01:06]} 25. Kf1 {[%clk 0:01:36]}  Qe8 {[%clk 0:00:33]} 26. Nc7 {[%clk 0:01:35]} 1-0


[Site "https://www.chess.com"]